bitfinex/quotes_BTCUSD_20251116
["timestamp","ask_amount","ask_price","bid_price","bid_amount"]
[1763311688557,0.035982,94388.0,94387.0,0.00091959]
[1763311688756,0.035982,94388.0,94387.0,0.00097959]
[1763311689308,0.01934903,94388.0,94387.0,0.01352555]
[1763311689593,0.01934903,94388.0,94387.0,0.00109959]
[1763311689792,0.01934903,94388.0,94387.0,0.00115959]
[1763311690134,0.01934903,94388.0,94387.0,0.00121959]
[1763311690596,0.01934903,94388.0,94387.0,0.04463833]
[1763311690814,0.08496,94389.0,94388.0,0.04341874]
[1763311691221,0.08496,94389.0,94387.0,0.00810483]
[1763311691461,0.08496,94389.0,94387.0,0.0003]
[1763311691877,0.08496,94389.0,94388.0,0.45688874]
[1763311692347,0.08496,94389.0,94388.0,0.36641874]
[1763311693369,0.08496,94389.0,94388.0,0.36741874]
[1763311694275,0.01662677,94442.0,94388.0,0.36741874]
[1763311694276,0.01662677,94442.0,94398.0,0.36641874]
[1763311694500,0.01950788,94441.0,94416.0,0.04341874]
[1763311694907,0.01950788,94441.0,94440.0,0.09813]
[1763311695303,0.10442788,94441.0,94440.0,0.08030874]
[1763311696156,0.10442788,94441.0,94440.0,0.03689]
[1763311696711,0.10442788,94441.0,94440.0,0.001]
[1763311697142,0.10442788,94441.0,94428.0,0.03689]
[1763311697317,0.10442788,94441.0,94410.0,0.09925]
[1763311697318,0.96450079,94438.0,94410.0,0.09925]
[1763311697513,0.96450079,94430.0,94371.0,0.08946568]
[1763311697715,0.96450079,94430.0,94358.0,0.03689]
[1763311697716,0.0205,94416.0,94390.0,0.09925]
[1763311697921,0.01950788,94415.0,94403.0,0.09925]
[1763311698166,0.01950788,94415.0,94380.0,0.03689]
[1763311698167,0.96450079,94413.0,94389.0,0.09925]
[1763311698325,0.44090875,94412.0,94380.0,0.03689]
[1763311698521,0.96450079,94400.0,94380.0,0.03689]
[1763311698726,0.34250788,94399.0,94380.0,0.03689]
[1763311699137,0.34250788,94399.0,94358.0,0.03689]
[1763311699138,0.04676,94388.0,94358.0,0.03689]
[1763311699331,0.01950788,94388.0,94372.0,0.03689]
[1763311699476,0.01950788,94388.0,94358.0,0.03689]
[1763311699477,0.06580788,94388.0,94358.0,0.03689]
[1763311699683,0.38880788,94388.0,94358.0,0.03689]
[1763311700641,0.38880788,94388.0,94345.0,0.09925]
[1763311700831,0.38880788,94388.0,94351.0,0.03689]
[1763311701033,0.38880788,94388.0,94336.0,0.04037]
[1763311701034,0.96450079,94361.0,94336.0,0.04037]
[1763311701186,0.323,94385.0,94336.0,0.04037]
[1763311701187,0.96450079,94350.0,94336.0,0.04050489]
[1763311701390,0.01950788,94349.0,94336.0,0.04050489]
[1763311701591,0.01950788,94348.0,94336.0,0.04050489]
[1763311701794,0.01950788,94347.0,94337.0,0.09925]
[1763311702022,0.01950788,94346.0,94337.0,0.09925]
[1763311702342,0.01950788,94345.0,94338.0,0.36641874]
[1763311702539,0.96450079,94400.0,94369.0,0.06035]
[1763311702761,0.96450079,94390.0,94370.0,0.03689]
[1763311702985,0.01948132,94389.0,94370.0,0.13614]
[1763311703346,0.01948132,94389.0,94370.0,0.03689]
[1763311703544,0.01948132,94389.0,94371.0,0.09925]
[1763311703744,0.01948132,94389.0,94388.0,0.00089172]
[1763311704503,0.02048132,94389.0,94388.0,0.00089172]
[1763311704706,0.11897953,94389.0,94388.0,0.00089172]
[1763311704900,0.02048132,94389.0,94388.0,0.00089172]
[1763311705304,0.10540132,94389.0,94388.0,0.00089172]
[1763311705439,0.10640132,94389.0,94388.0,0.00089172]
[1763311705640,0.10440132,94389.0,94388.0,0.00089172]
[1763311705853,0.11484145,94389.0,94388.0,0.00089172]
[1763311706050,0.16273145,94389.0,94388.0,0.00089172]
[1763311706254,0.11484145,94389.0,94388.0,0.00089172]
[1763311706453,0.48573145,94389.0,94388.0,0.00089172]
[1763311706671,0.10440132,94389.0,94388.0,0.00089172]
[1763311707015,0.15273132,94389.0,94388.0,0.00095172]
[1763311707254,0.10440132,94389.0,94388.0,0.00101172]
[1763311707464,0.10540132,94389.0,94388.0,0.00101172]
[1763311707679,0.10540132,94389.0,94388.0,0.00107172]
[1763311707902,0.10540132,94389.0,94388.0,0.00113172]
[1763311708285,0.10540132,94389.0,94388.0,0.00119172]
[1763311708705,0.10640132,94389.0,94388.0,0.00119172]
[1763311708911,0.10540132,94389.0,94388.0,0.00119172]
[1763311709669,0.10640132,94389.0,94388.0,0.00119172]
[1763311710026,0.10540132,94389.0,94388.0,0.00119172]
[1763311710514,0.10640132,94389.0,94388.0,0.00119172]
[1763311711840,0.10440132,94389.0,94388.0,0.00119172]
[1763311712082,0.10540132,94389.0,94388.0,0.00119172]
[1763311712491,0.10440132,94389.0,94388.0,0.00119172]
[1763311712696,0.08492,94389.0,94388.0,0.00119172]
[1763311712903,0.65835215,94400.0,94397.0,0.04852]
[1763311713106,0.0001347,94400.0,94397.0,0.04852]
[1763311713864,0.0001347,94400.0,94390.0,0.04852]
[1763311714099,1.38268769,94400.0,94388.0,0.0003]
[1763311714315,1.316839,94400.0,94388.0,0.0003]
[1763311715141,1.317839,94400.0,94388.0,0.0003]
[1763311715344,0.08492,94399.0,94388.0,0.0003]
[1763311716126,0.01663118,94397.0,94388.0,0.0003]
[1763311716330,0.04022,94389.0,94388.0,0.0003]
[1763311717554,0.01663118,94397.0,94388.0,0.0003]
[1763311717765,0.01663118,94397.0,94388.0,0.09775]
[1763311718936,0.01663118,94397.0,94396.0,0.06259]
[1763311719158,0.08492,94399.0,94397.0,0.09645]
[1763311719378,0.08492,94399.0,94397.0,0.41945]
[1763311719805,0.08492,94399.0,94397.0,0.323]
[1763311720241,0.08492,94399.0,94388.0,0.0003]
[1763311720907,0.40792,94399.0,94388.0,0.0003]
[1763311721142,0.10366938,94398.0,94388.0,0.0003]
[1763311721357,0.76202153,94398.0,94388.0,0.0003]
[1763311721845,0.65835215,94398.0,94388.0,0.0003]
[1763311722345,0.65935215,94398.0,94388.0,0.0003]
[1763311723176,0.001,94398.0,94388.0,0.0003]
[1763311723618,0.03068,94397.0,94388.0,0.0003]
[1763311724495,0.1201,94397.0,94388.0,0.0003]
[1763311724720,0.01963143,94396.0,94388.0,0.0003]
[1763311724919,0.01963143,94395.0,94388.0,0.0003]
[1763311725140,0.01963143,94394.0,94388.0,0.0003]
[1763311725359,0.01963143,94393.0,94388.0,0.0003]
[1763311725580,0.01963143,94392.0,94388.0,0.0003]
[1763311725774,0.00089,94389.0,94388.0,0.0003]
[1763311726024,0.02052143,94389.0,94388.0,0.0003]
[1763311726226,0.05805844,94389.0,94388.0,0.0003]
[1763311726370,0.05805844,94389.0,94370.0,0.00024]
[1763311726371,0.65835215,94380.0,94370.0,0.00024]
[1763311726574,0.01963143,94379.0,94370.0,0.00024]
[1763311726935,0.01963143,94378.0,94370.0,0.00024]
[1763311727154,0.04919,94379.0,94370.0,0.00024]
[1763311727155,0.01963143,94377.0,94370.0,0.00024]
[1763311727361,0.01963143,94376.0,94370.0,0.00024]
[1763311727564,0.00088,94371.0,94370.0,0.00024]
[1763311727773,0.02056997,94371.0,94370.0,0.00024]
[1763311728164,0.02056997,94371.0,94370.0,0.00163339]
[1763311728809,0.323,94378.0,94370.0,0.00163339]
[1763311729008,0.323,94378.0,94370.0,0.00024]
[1763311729009,0.02278,94371.0,94370.0,0.00024]
[1763311729212,0.057358,94371.0,94370.0,0.00024]
[1763311729353,0.02278,94371.0,94370.0,0.00163339]
[1763311729966,0.01663786,94373.0,94370.0,0.00163339]
[1763311730153,0.01663786,94373.0,94370.0,0.00024]
[1763311730357,0.001,94378.0,94371.0,0.09745]
[1763311730556,0.002,94378.0,94371.0,0.09745]
[1763311730761,0.002,94378.0,94372.0,0.04852]
[1763311731002,0.001,94378.0,94372.0,0.04852]
[1763311731208,0.65835215,94382.0,94372.0,0.04852]
[1763311731623,0.65835215,94382.0,94372.0,0.04752]
[1763311732996,0.00024,94373.0,94370.0,0.00024]
[1763311733229,0.02377,94381.0,94370.0,0.00024]
[1763311733230,0.00024,94371.0,94370.0,0.00024]
[1763311734376,5.0,94379.0,94370.0,0.00024]
[1763311734585,0.001,94371.0,94370.0,0.00024]
[1763311734995,0.002,94371.0,94370.0,0.00024]
[1763311735203,0.001,94371.0,94370.0,0.00024]
[1763311735412,0.08496,94371.0,94370.0,0.09769]
[1763311735615,0.08496,94371.0,94370.0,0.00024]
[1763311735817,0.08496,94371.0,94370.0,0.00163339]
[1763311736715,0.08496,94371.0,94370.0,0.09908339]
[1763311738100,0.08496,94371.0,94370.0,0.00163339]
[1763311738562,0.10159481,94371.0,94370.0,0.00163339]
[1763311740927,0.17077121,94371.0,94370.0,0.00163339]
[1763311741193,0.08581121,94371.0,94370.0,0.00163339]
[1763311742057,0.03631121,94371.0,94370.0,0.00163339]
[1763311742676,0.03731121,94371.0,94370.0,0.00163339]
[1763311743291,0.0206764,94371.0,94370.0,0.00163339]
[1763311743770,0.0196764,94371.0,94370.0,0.00163339]
[1763311745396,0.1046364,94371.0,94370.0,0.00263339]
[1763311746003,0.1046364,94371.0,94370.0,0.00363339]
[1763311746626,0.1046364,94371.0,94370.0,0.00263339]
[1763311746830,0.1046364,94371.0,94370.0,0.00363339]
[1763311747232,0.1046364,94371.0,94370.0,0.00263339]
[1763311747498,0.1046364,94371.0,94370.0,0.00163339]
[1763311747914,0.1046364,94371.0,94370.0,0.00263339]
[1763311748038,0.1046364,94371.0,94370.0,0.00163339]
[1763311748563,0.1046364,94371.0,94370.0,0.00363339]
[1763311749203,0.1046364,94371.0,94370.0,0.04605213]
[1763311749341,0.1046364,94371.0,94370.0,0.08295734]
[1763311749550,0.1046364,94371.0,94370.0,0.08395734]
[1763311749765,0.09463599,94371.0,94370.0,0.46807734]
[1763311750088,0.65835215,94410.0,94380.0,0.36641874]
[1763311750272,0.08496,94409.0,94380.0,0.36641874]
[1763311750497,0.08496,94409.0,94400.0,0.04843]
[1763311750710,0.08496,94409.0,94408.0,0.10955]
[1763311751624,0.0001347,94410.0,94400.0,0.04843]
[1763311751805,0.65848685,94410.0,94400.0,0.04843]
[1763311752016,0.65848685,94410.0,94381.0,0.04685887]
[1763311752017,0.65948685,94410.0,94381.0,0.04685887]
[1763311752182,0.65835215,94391.0,94382.0,0.09561]
[1763311752381,0.65835215,94400.0,94382.0,0.09561]
[1763311752595,0.0001347,94410.0,94409.0,0.04843]
[1763311753552,0.0001347,94410.0,94399.0,0.04843]
[1763311753756,0.65835215,94409.0,94399.0,0.04843]
[1763311754163,0.65835215,94409.0,94408.0,6e-05]
[1763311754362,0.0001347,94410.0,94408.0,6e-05]
[1763311754565,0.0001347,94410.0,94408.0,0.00012]
[1763311755081,0.00049,94409.0,94408.0,0.00012]
[1763311755279,0.08541,94409.0,94408.0,0.00018]
[1763311755508,0.00049,94409.0,94408.0,0.00018]
[1763311755881,0.00049,94409.0,94408.0,0.00024]
[1763311756299,0.00049,94409.0,94408.0,0.00063454]
[1763311756720,0.00149,94409.0,94408.0,0.00063454]
[1763311757130,0.05909679,94409.0,94408.0,0.00063454]
[1763311757532,0.00249,94409.0,94408.0,0.00063454]
[1763311757733,0.002,94409.0,94408.0,0.00063454]
[1763311758257,0.002,94409.0,94408.0,0.01472799]
[1763311758417,0.002,94409.0,94408.0,0.00063454]
[1763311759032,0.001,94409.0,94408.0,0.00069454]
[1763311759234,0.0001347,94410.0,94409.0,0.09512]
[1763311759685,0.0001347,94410.0,94409.0,0.09542668]
[1763311760799,0.0001347,94410.0,94409.0,0.09642668]
[1763311761003,0.0001347,94410.0,94409.0,0.09542668]
[1763311761406,0.01676402,94410.0,94409.0,0.09542668]
[1763311761621,0.0001347,94410.0,94409.0,0.09542668]
[1763311761818,0.01969095,94410.0,94409.0,0.09542668]
[1763311762040,0.01969095,94410.0,94409.0,0.00130668]
[1763311762676,0.01969095,94410.0,94409.0,0.00030668]
[1763311762958,0.01969095,94410.0,94409.0,0.00230668]
[1763311764838,0.01969095,94410.0,94409.0,0.09742668]
[1763311765078,0.01969095,94410.0,94409.0,0.00230668]
[1763311765285,0.10461095,94410.0,94409.0,0.00230668]
[1763311766250,0.10461095,94410.0,94409.0,0.09742668]
[1763311767019,0.0850547,94410.0,94409.0,0.09742668]
[1763311767224,0.0850547,94410.0,94409.0,0.50593009]
[1763311767639,0.0850547,94410.0,94409.0,0.40981009]
[1763311767908,0.0850547,94410.0,94409.0,0.41081009]
[1763311768523,0.0850547,94410.0,94409.0,0.40881009]
[1763311768770,0.0850547,94410.0,94409.0,0.41181009]
[1763311769233,0.0850547,94410.0,94409.0,0.32530668]
[1763311769440,0.0850547,94410.0,94409.0,0.37072542]
[1763311770175,0.0850547,94410.0,94409.0,0.36672542]
[1763311770620,0.0850547,94410.0,94409.0,0.36872542]
[1763311771152,0.10459071,94410.0,94409.0,0.00130668]
[1763311771358,0.10459071,94410.0,94409.0,0.09742668]
[1763311771589,0.10459071,94410.0,94409.0,0.00130668]
[1763311771810,0.10459071,94410.0,94409.0,0.00030668]
[1763311772032,0.10459071,94410.0,94409.0,0.00130668]
[1763311772696,0.10459071,94410.0,94409.0,0.00230668]
[1763311773327,0.10459071,94410.0,94409.0,0.00130668]
[1763311773689,0.10459071,94410.0,94409.0,0.01197335]
[1763311773899,0.10459071,94410.0,94409.0,0.00230668]
[1763311774128,0.10459071,94410.0,94409.0,0.00130668]
[1763311775098,0.10459071,94410.0,94409.0,0.00030668]
[1763311775334,0.10459071,94410.0,94409.0,0.00130668]
[1763311776110,0.10459071,94410.0,94409.0,0.00230668]
[1763311776296,0.10459071,94410.0,94409.0,0.00130668]
[1763311776508,0.10459071,94410.0,94409.0,0.00030668]
[1763311776712,0.10459071,94410.0,94409.0,0.00230668]
[1763311777079,0.12121891,94410.0,94409.0,0.00230668]
[1763311777766,0.12121891,94410.0,94409.0,0.00130668]
[1763311778104,0.12121891,94410.0,94409.0,0.00230668]
[1763311778607,0.12121891,94410.0,94409.0,0.00130668]
[1763311779039,0.12121891,94410.0,94409.0,0.00230668]
[1763311779277,0.12121891,94410.0,94409.0,0.09624668]
[1763311779483,0.12121891,94410.0,94409.0,0.09524668]
[1763311781273,0.10459071,94410.0,94409.0,0.09524668]
[1763311781656,0.10459071,94410.0,94409.0,0.00030668]
[1763311782057,0.08492,94410.0,94409.0,0.00030668]
[1763311782710,0.08492,94410.0,94409.0,0.09524668]
[1763311784392,0.10154898,94410.0,94409.0,0.09524668]
[1763311784592,0.10154898,94410.0,94409.0,0.11962686]
[1763311784794,0.10154898,94410.0,94409.0,0.09524668]
[1763311785049,0.10154898,94410.0,94409.0,0.00030668]
[1763311788741,0.10154898,94410.0,94409.0,0.14844177]
[1763311789342,0.10154898,94410.0,94409.0,0.47144177]
[1763311789544,0.10154898,94410.0,94409.0,0.32330668]
[1763311789833,0.10154898,94410.0,94409.0,0.35567935]
[1763311790407,0.10154898,94410.0,94409.0,0.47244177]
[1763311791375,0.10154898,94410.0,94409.0,0.47344177]
[1763311791586,0.08492,94410.0,94409.0,0.47244177]
[1763311791786,0.08492,94410.0,94409.0,0.47144177]
[1763311791984,0.08492,94410.0,94409.0,0.47344177]
[1763311792384,0.08492,94410.0,94409.0,0.51882795]
[1763311792549,0.08492,94410.0,94409.0,0.51982795]
[1763311792746,0.08492,94410.0,94409.0,0.52082795]
[1763311793350,0.08492,94410.0,94409.0,0.19582795]
[1763311793549,0.08492,94410.0,94409.0,0.14844177]
[1763311793834,0.08492,94410.0,94409.0,0.47144177]
[1763311794070,0.08492,94451.0,94409.0,0.51486051]
[1763311794320,0.00245064,94441.0,94440.0,0.11336]
[1763311794464,0.10699395,94441.0,94440.0,0.11336]
[1763311794670,0.10699395,94441.0,94440.0,0.04798]
[1763311797493,0.42999395,94441.0,94440.0,0.04798]
[1763311797664,0.44661548,94441.0,94440.0,0.04798]
[1763311798710,0.44661548,94441.0,94440.0,0.14292]
[1763311799073,0.44661548,94441.0,94440.0,0.04798]
[1763311800110,0.44661548,94441.0,94429.0,0.24307509]
[1763311800111,0.323,94440.0,94429.0,0.24307509]
[1763311800274,0.01962331,94439.0,94429.0,0.24307509]
[1763311800478,0.01962331,94438.0,94429.0,0.24307509]
[1763311800680,0.01962331,94437.0,94429.0,0.24307509]
[1763311800882,0.01962331,94436.0,94429.0,0.24307509]
[1763311801083,0.01962331,94435.0,94429.0,0.14813509]
[1763311801282,0.01962331,94434.0,94429.0,0.14813509]
[1763311801542,1.28787973,94440.0,94429.0,0.14813509]
[1763311801543,0.01962331,94433.0,94429.0,0.14813509]
[1763311801728,0.01962331,94432.0,94412.0,0.09688313]
[1763311801913,0.323,94429.0,94413.0,0.09666]
[1763311802231,0.01962331,94428.0,94414.0,0.01452831]
[1763311802396,0.01962331,94427.0,94414.0,0.01452831]
[1763311802601,0.01962331,94426.0,94415.0,0.09666]
[1763311802879,0.01962331,94425.0,94415.0,0.09666]
[1763311803018,0.323,94429.0,94415.0,0.09666]
[1763311803019,0.01962331,94424.0,94415.0,0.09666]
[1763311803213,0.001,94433.0,94415.0,0.09666]
[1763311803214,0.01962331,94423.0,94415.0,0.09666]
[1763311803414,0.001,94433.0,94415.0,0.09666]
[1763311803415,0.01962331,94422.0,94415.0,0.09666]
[1763311803614,0.001,94433.0,94415.0,0.09666]
[1763311803615,0.01962331,94421.0,94415.0,0.09666]
[1763311803918,0.01962331,94420.0,94416.0,0.03566916]
[1763311804123,0.10399217,94441.0,94415.0,0.09666]
[1763311804124,0.01962331,94419.0,94415.0,0.09666]
[1763311804356,0.01962331,94418.0,94415.0,0.09666]
[1763311804557,0.01962331,94417.0,94415.0,0.09666]
[1763311804790,0.01962331,94416.0,94415.0,0.09866]
[1763311804967,0.01962331,94416.0,94415.0,0.09766]
[1763311805549,0.01962331,94416.0,94415.0,0.09666]
[1763311806932,0.01962331,94416.0,94415.0,0.09766]
[1763311807472,0.01962331,94416.0,94415.0,0.09866]
[1763311808065,0.42750331,94416.0,94415.0,0.09866]
[1763311808476,0.42747708,94416.0,94415.0,0.09866]
[1763311808678,0.42747708,94416.0,94415.0,0.09666]
[1763311809180,0.10447708,94416.0,94415.0,0.11784307]
[1763311809389,0.08488,94416.0,94415.0,0.16126181]
[1763311809816,0.08488,94416.0,94415.0,0.04341874]
[1763311810628,0.08488,94416.0,94415.0,0.04441874]
[1763311810833,0.08488,94416.0,94415.0,0.04541874]
[1763311811243,0.08488,94416.0,94415.0,0.002]
[1763311811451,0.08488,94416.0,94415.0,0.01140419]
[1763311811693,0.08488,94416.0,94415.0,0.01040419]
[1763311813040,0.08488,94416.0,94415.0,0.01140419]
[1763311813471,0.08488,94416.0,94415.0,0.01040419]
[1763311813895,0.08488,94416.0,94415.0,0.01140419]
[1763311815377,0.00245064,94441.0,94424.0,0.0621]
[1763311815601,0.00245064,94441.0,94440.0,0.10867]
[1763311815811,0.10690255,94441.0,94440.0,0.10867]
[1763311816020,0.10690255,94441.0,94440.0,0.04657]
[1763311816667,0.42990255,94441.0,94440.0,0.04657]
[1763311816885,0.42990255,94441.0,94440.0,0.04757]
[1763311817293,0.42990255,94441.0,94440.0,0.04657]
[1763311817468,0.42990255,94441.0,94440.0,0.04857]
[1763311817639,0.42990255,94441.0,94440.0,0.04757]
[1763311817991,0.42990255,94441.0,94440.0,0.14352]
[1763311818317,0.42990255,94441.0,94440.0,0.14552]
[1763311818879,0.42990255,94441.0,94440.0,0.04857]
[1763311819284,0.323,94441.0,94440.0,0.04857]
[1763311819502,0.08488,94441.0,94440.0,0.04857]
[1763311819921,0.08488,94441.0,94440.0,0.14552]
[1763311820354,0.08488,94441.0,94440.0,0.063122]
[1763311820566,0.08488,94441.0,94440.0,0.04857]
[1763311822252,0.08488,94441.0,94440.0,0.24012383]
[1763311822638,0.08488,94441.0,94440.0,0.19670509]
[1763311823049,0.08488,94441.0,94440.0,0.19570509]
[1763311823249,0.08488,94441.0,94440.0,0.19670509]
[1763311823443,0.08488,94441.0,94440.0,0.2153756]
[1763311823631,0.08488,94441.0,94440.0,0.19576509]
[1763311824055,0.08488,94441.0,94440.0,0.19582509]
[1763311824268,0.08488,94441.0,94440.0,0.19682509]
[1763311824497,0.08488,94441.0,94440.0,0.19582509]
[1763311824699,0.08488,94441.0,94440.0,0.2154076]
[1763311824913,0.08488,94441.0,94440.0,0.2164076]
[1763311825334,0.08488,94441.0,94440.0,0.25982634]
[1763311825748,0.08488,94441.0,94440.0,0.25882634]
[1763311825958,0.08488,94441.0,94440.0,0.25982634]
[1763311826160,0.08488,94441.0,94440.0,0.25882634]
[1763311826276,0.08488,94441.0,94440.0,0.25782634]
[1763311826483,0.08488,94441.0,94440.0,0.25982634]
[1763311826710,0.08488,94441.0,94440.0,0.25882634]
[1763311827080,0.08488,94441.0,94440.0,0.25982634]
[1763311827245,0.08488,94441.0,94440.0,0.25782634]
[1763311827659,0.08488,94441.0,94440.0,0.25882634]
[1763311828282,0.08488,94441.0,94440.0,0.23924383]
[1763311828700,0.08488,94441.0,94440.0,0.24024383]
[1763311831513,0.08488,94441.0,94440.0,0.23924383]
[1763311832122,0.08488,94441.0,94440.0,0.24024383]
[1763311832294,0.08488,94441.0,94440.0,0.23924383]
[1763311832472,0.08488,94441.0,94440.0,0.26702319]
[1763311832674,0.0162899,94470.0,94469.0,0.11113]
[1763311832880,0.44384057,94470.0,94469.0,0.11113]
[1763311833059,0.44384057,94470.0,94469.0,0.0449]
[1763311833477,0.42755067,94470.0,94469.0,0.0449]
[1763311836557,0.10455067,94470.0,94469.0,0.0449]
[1763311839007,0.10455067,94470.0,94469.0,0.0459]
[1763311839417,0.10455067,94470.0,94469.0,0.0449]
[1763311839784,0.10455067,94470.0,94469.0,0.23645383]
[1763311839981,0.10455067,94470.0,94469.0,0.19303509]
[1763311840189,0.10455067,94470.0,94469.0,0.2123386]
[1763311841004,0.10455067,94470.0,94469.0,0.25575734]
[1763311841174,0.08501519,94470.0,94469.0,0.25575734]
[1763311841575,0.08501519,94470.0,94469.0,0.25775734]
[1763311841932,0.08501519,94470.0,94469.0,0.25555779]
[1763311845618,0.08501519,94470.0,94469.0,0.1074227]
[1763311845816,0.08501519,94470.0,94469.0,0.08811919]
[1763311847097,0.08501519,94470.0,94469.0,0.08711919]
[1763311847309,0.08501519,94470.0,94469.0,0.08811919]
[1763311847825,0.08501519,94470.0,94469.0,0.08711919]
[1763311848026,0.08501519,94470.0,94469.0,0.08611919]
[1763311848241,0.08501519,94470.0,94469.0,0.08811919]
[1763311848437,0.08501519,94470.0,94469.0,0.09673111]
[1763311848657,0.08501519,94470.0,94469.0,0.09573111]
[1763311848782,0.08501519,94470.0,94469.0,0.09673111]
[1763311849341,0.08501519,94470.0,94469.0,0.09573111]
[1763311849502,0.08501519,94470.0,94469.0,0.09673111]
[1763311849702,0.08501519,94470.0,94469.0,0.04470045]
[1763311849926,0.10457696,94470.0,94469.0,0.04470045]
[1763311850134,0.10457696,94470.0,94469.0,0.04370045]
[1763311850337,0.10457696,94470.0,94469.0,0.04470045]
[1763311851962,0.42806696,94470.0,94469.0,0.002]
[1763311852191,0.43852466,94470.0,94469.0,0.002]
[1763311852622,0.42757696,94470.0,94469.0,0.002]
[1763311852828,0.42757696,94470.0,94469.0,0.001]
[1763311853181,0.323,94469.0,94456.0,0.04903]
[1763311853391,0.323,94465.0,94456.0,0.04903]
[1763311853558,0.01956177,94464.0,94456.0,0.04903]
[1763311853760,0.01956177,94463.0,94456.0,0.04903]
[1763311853959,0.01956177,94462.0,94456.0,0.04903]
[1763311854163,0.01956177,94461.0,94456.0,0.04903]
[1763311854368,0.323,94465.0,94456.0,0.04903]
[1763311854369,0.01956177,94460.0,94456.0,0.04903]
[1763311854576,0.01956177,94459.0,94456.0,0.04903]
[1763311854802,0.01956177,94458.0,94456.0,0.04903]
[1763311855002,0.01956177,94457.0,94456.0,0.04903]
[1763311856620,0.01956177,94464.0,94456.0,0.04903]
[1763311856824,0.01956177,94463.0,94456.0,0.04903]
[1763311857045,0.01956177,94462.0,94457.0,0.09089]
[1763311857242,0.323,94465.0,94457.0,0.09089]
[1763311857243,0.01956177,94461.0,94457.0,0.09089]
[1763311857499,0.01956177,94460.0,94457.0,0.09089]
[1763311857730,0.08501519,94470.0,94457.0,0.09089]
[1763311857731,0.01956177,94459.0,94457.0,0.104882]
[1763311857853,0.08501519,94470.0,94458.0,0.02117343]
[1763311858057,0.01957058,94469.0,94458.0,0.02117343]
[1763311858404,0.01957058,94469.0,94459.0,0.09089]
[1763311858666,0.01957058,94469.0,94468.0,0.06623]
[1763311859136,0.34257058,94469.0,94459.0,0.09089]
[1763311859280,0.01957058,94468.0,94459.0,0.09089]
[1763311859486,0.01957058,94467.0,94459.0,0.09089]
[1763311859734,0.35368,94469.0,94459.0,0.09089]
[1763311859735,0.01957058,94466.0,94459.0,0.09089]
[1763311859949,0.01957058,94465.0,94459.0,0.09089]
[1763311860174,0.01957058,94464.0,94456.0,0.04903]
[1763311860439,0.01957058,94463.0,94456.0,0.04903]
[1763311860675,0.01957058,94462.0,94456.0,0.04903]
[1763311860806,0.01957058,94461.0,94456.0,0.04903]
[1763311861007,0.01957058,94460.0,94457.0,0.09089]
[1763311861209,0.01957058,94459.0,94457.0,0.09089]
[1763311861431,0.01957058,94458.0,94457.0,0.09089]
[1763311861601,0.08501519,94470.0,94468.0,0.06623]
[1763311861795,0.08501519,94470.0,94456.0,0.04903]
[1763311862077,0.08501519,94470.0,94469.0,0.06527]
[1763311862413,0.08501519,94470.0,94459.0,0.04341874]
[1763311862747,0.08501519,94470.0,94469.0,0.06527]
[1763311863148,0.08501519,94470.0,94460.0,0.1491]
[1763311863311,0.08501519,94470.0,94469.0,0.06527]
[1763311863514,0.08501519,94470.0,94469.0,0.071797]
[1763311863714,0.08501519,94470.0,94469.0,0.006527]
[1763311863935,0.08501519,94470.0,94459.0,0.04341874]
[1763311864279,0.16738068,94500.0,94499.0,0.10804]
[1763311864515,0.25235418,94500.0,94499.0,0.04277]
[1763311869187,0.25235418,94500.0,94499.0,0.08618874]
[1763311869416,0.25235418,94500.0,94499.0,0.09480761]
[1763311870271,0.25235418,94500.0,94499.0,0.09580761]
[1763311870746,0.25235418,94500.0,94499.0,0.09680761]
[1763311872477,0.25215418,94500.0,94499.0,0.09680761]
[1763311872659,0.17678838,94500.0,94499.0,0.09680761]
[1763311872861,0.17678838,94500.0,94499.0,0.41980761]
[1763311873583,0.0002,94510.0,94500.0,0.64003969]
[1763311873793,0.0002,94510.0,94509.0,0.52115442]
[1763311874216,0.0002,94510.0,94509.0,0.45588442]
[1763311874987,0.0002,94510.0,94509.0,0.04341874]
[1763311875173,0.0002,94510.0,94503.0,0.323]
[1763311875174,0.0002,94510.0,94504.0,0.04341874]
[1763311875374,0.0002,94510.0,94499.0,0.04477]
[1763311875553,0.0002,94510.0,94509.0,0.06088]
[1763311875759,0.0002,94510.0,94501.0,0.04341874]
[1763311875995,0.0002,94510.0,94509.0,0.10529874]
[1763311876407,0.0002,94510.0,94509.0,0.04441874]
[1763311876606,0.0002,94510.0,94509.0,0.04341874]
[1763311876802,0.0002,94510.0,94499.0,0.04277]
[1763311877030,0.0002,94510.0,94509.0,0.06088]
[1763311877165,0.0002,94510.0,94509.0,0.06188]
[1763311877369,0.0002,94510.0,94509.0,0.007188]
[1763311877591,0.0002,94510.0,94509.0,0.001]
[1763311877810,0.0002,94510.0,94509.0,0.003]
[1763311878990,0.0002,94510.0,94509.0,0.001]
[1763311879433,0.0002,94510.0,94501.0,0.04341874]
[1763311879594,0.0002,94510.0,94509.0,0.06088]
[1763311879791,0.0002,94510.0,94509.0,0.06978608]
[1763311880068,0.0002,94510.0,94509.0,0.00990608]
[1763311880257,0.0002,94510.0,94509.0,0.04341874]
[1763311880462,0.0002,94510.0,94509.0,0.06458074]
[1763311881305,0.0002,94510.0,94509.0,0.04441874]
[1763311881922,0.0002,94510.0,94509.0,0.06558074]
[1763311882456,0.0002,94510.0,94509.0,0.06458074]
[1763311882672,0.0002,94510.0,94509.0,0.10433881]
[1763311883278,0.0002,94510.0,94509.0,0.10533881]
[1763311883519,0.0002,94510.0,94509.0,0.42833881]
[1763311883695,0.0002,94510.0,94509.0,0.40917681]
[1763311886716,0.0002,94520.0,94519.0,0.66748208]
[1763311886929,0.0002,94520.0,94519.0,0.8223588]
[1763311887141,0.0002,94530.0,94529.0,0.36641874]
[1763311887391,0.00033506,94530.0,94529.0,0.41505874]
[1763311887603,0.323,94589.0,94529.0,0.41505874]
[1763311887604,0.48397396,94580.0,94529.0,0.41505874]
[1763311887743,0.48397396,94580.0,94545.0,0.04341874]
[1763311887744,0.0848,94550.0,94545.0,0.04341874]
[1763311887949,0.0848,94550.0,94549.0,0.45588442]
[1763311888600,0.0002,94600.0,94574.0,0.04341874]
[1763311888800,0.0002,94600.0,94599.0,0.10694]
[1763311889051,0.10495652,94600.0,94599.0,0.10694]
[1763311889937,0.10495652,94600.0,94588.0,0.04864]